fUSD/lending_fUSD_20260326
["ID","MTS","AMOUNT","RATE_DAILY","PERIOD"]
[418911047,1774530644269,-488.0,0.0001412,2]
[418911048,1774530644279,-428.0,0.0001412,2]
[418911049,1774530644289,-501.89507537,0.0001412,2]
[418911050,1774530644298,-488.0,0.0001412,2]
[418911051,1774530644307,-488.0,0.0001412,2]
[418911052,1774530644317,-488.0,0.0001412,2]
[418911053,1774530644326,-488.0,0.0001412,2]
[418911054,1774530644336,-488.0,0.0001412,2]
[418911055,1774530644345,-488.0,0.0001412,2]
[418911056,1774530644354,-428.0,0.0001412,2]
[418911057,1774530644364,-488.0,0.0001412,2]
[418911058,1774530644373,-488.0,0.0001412,2]
[418911059,1774530644382,-488.0,0.0001412,2]
[418911060,1774530644392,-488.0,0.0001412,2]
[418911061,1774530644402,-488.0,0.0001412,2]
[418911062,1774530644412,-488.0,0.0001412,2]
[418911063,1774530644422,-488.0,0.0001412,2]
[418911064,1774530644431,-488.0,0.0001412,2]
[418911065,1774530644441,-428.0,0.0001412,2]
[418911066,1774530644450,-488.0,0.0001412,2]
[418911067,1774530644460,-488.0,0.0001412,2]
[418911068,1774530644469,-488.0,0.0001412,2]
[418911069,1774530644481,-488.0,0.0001412,2]
[418911070,1774530644490,-428.0,0.0001412,2]
[418911071,1774530644500,-488.0,0.0001412,2]
[418911072,1774530644510,-428.0,0.0001412,2]
[418911073,1774530644519,-488.0,0.0001412,2]
[418911074,1774530644529,-488.0,0.0001412,2]
[418911075,1774530644538,-428.0,0.0001412,2]
[418911076,1774530644548,-488.0,0.0001412,2]
[418911077,1774530644557,-436.51872979,0.0001412,2]
[418911078,1774530644566,-500.72032213,0.0001412,2]
[418911079,1774530644577,-500.0,0.0001412,2]
[418911080,1774530644587,-500.0,0.0001412,2]
[418911081,1774530644596,-500.0,0.0001412,2]
[418911082,1774530644606,-500.0,0.0001412,2]
[418911083,1774530644615,-500.0,0.0001412,2]
[418911084,1774530644624,-500.0,0.0001412,2]
[418911085,1774530644634,-500.0,0.0001412,2]
[418911086,1774530644643,-500.0,0.0001412,2]
[418911087,1774530644653,-500.0,0.0001412,2]
[418911088,1774530644663,-500.0,0.0001412,2]
[418911089,1774530644673,-500.0,0.0001412,2]
[418911090,1774530644682,-500.0,0.0001412,2]
[418911091,1774530644692,-500.0,0.0001412,2]
[418911092,1774530644702,-636.32167353,0.0001412,2]
[418911093,1774530644711,-500.0,0.0001412,2]
[418911094,1774530644720,-500.0,0.0001412,2]
[418911095,1774530644729,-472.44900088,0.0001412,2]
[418911096,1774530644739,-150.0,0.0001412,2]
[418911097,1774530644749,-500.0,0.0001412,2]
[418911098,1774530644758,-150.0,0.0001412,2]
[418911099,1774530644768,-500.0,0.0001412,2]
[418911100,1774530644777,-150.0,0.0001412,2]
[418911101,1774530644787,-500.0,0.0001412,2]
[418911102,1774530644796,-282.81610969,0.0001412,2]
[418911103,1774530644806,-500.0,0.0001412,2]
[418911104,1774530644815,-500.0,0.0001412,2]
[418911105,1774530644825,-188.31660874,0.0001412,2]
[418911106,1774530644834,-150.0,0.0001412,2]
[418911107,1774530644843,-500.0,0.0001412,2]
[418911108,1774530644853,-500.0,0.0001412,2]
[418911109,1774530644862,-500.0,0.0001412,2]
[418911110,1774530644872,-500.0,0.0001412,2]
[418911111,1774530644881,-500.0,0.0001412,2]
[418911112,1774530644891,-500.0,0.0001412,2]
[418911113,1774530644900,-500.0,0.0001412,2]
[418911114,1774530644911,-157.62886977,0.0001412,2]
[418911115,1774530644921,-500.0,0.0001412,2]
[418911116,1774530644930,-643.67228165,0.0001412,2]
[418911117,1774530644940,-323.33316346,0.0001412,2]
[418911118,1774530644950,-500.0,0.0001412,2]
[418911119,1774530644959,-500.0,0.0001412,2]
[418911120,1774530644969,-500.0,0.0001412,2]
[418911121,1774530644978,-500.0,0.0001412,2]
[418911122,1774530644988,-500.0,0.0001412,2]
[418911123,1774530644997,-500.0,0.0001412,2]
[418911124,1774530645007,-500.0,0.0001412,2]
[418911125,1774530645017,-500.0,0.0001412,2]
[418911126,1774530645026,-500.0,0.0001412,2]
[418911127,1774530645039,-500.0,0.0001412,2]
[418911128,1774530645051,-500.0,0.0001412,2]
[418911129,1774530645065,-500.0,0.0001412,2]
[418911130,1774530645078,-500.0,0.0001412,2]
[418911131,1774530645090,-500.0,0.0001412,2]
[418911132,1774530645102,-500.0,0.0001412,2]
[418911133,1774530645115,-500.0,0.0001412,2]
[418911134,1774530645125,-500.0,0.0001412,2]
[418911135,1774530645135,-500.0,0.0001412,2]
[418911136,1774530645147,-496.50447388,0.0001412,2]
[418911137,1774530645159,-166.66,0.0001413,2]
[418911138,1774530645171,-640.4578624,0.00014156,2]
[418911139,1774530645183,-500.0,0.00014156,2]
[418911140,1774530645196,-500.0,0.00014156,2]
[418911141,1774530645209,-500.0,0.00014173,2]
[418911142,1774530645221,-500.0,0.00014173,2]
[418911143,1774530645233,-433.52493421,0.00014173,2]
[418911144,1774530645245,-500.0,0.00014173,2]
[418911145,1774530645256,-500.0,0.00014209,2]
[418911146,1774530645267,-503.0,0.00014274,2]
[418911147,1774530645279,-312.0,0.000143,2]
[418911148,1774530645291,-1707.73262623,0.00014367,2]
[418911149,1774530645303,-8969.50058419,0.00014426,2]
[418911150,1774530645315,-166.66,0.00014428,2]
[418911151,1774530645326,-500.0,0.00014455,2]
[418911152,1774530645337,-500.0,0.00014455,2]
[418911153,1774530645347,-500.0,0.00014455,2]
[418911154,1774530645359,-500.0,0.00014455,2]
[418911155,1774530645370,-500.0,0.00014455,2]
[418911156,1774530645381,-500.0,0.00014455,2]
[418911157,1774530645391,-500.0,0.00014455,2]
[418911158,1774530645401,-500.0,0.00014455,2]
[418911159,1774530645413,-500.0,0.00014455,2]
[418911160,1774530645425,-500.0,0.00014455,2]
[418911161,1774530645435,-500.0,0.00014455,2]
[418911162,1774530645447,-500.0,0.00014455,2]
[418911163,1774530645459,-500.0,0.00014455,2]
[418911164,1774530645470,-500.0,0.00014455,2]
[418911165,1774530645482,-500.0,0.00014493,2]
[418911166,1774530645494,-1115.9857,0.00014504,2]
[418911167,1774530645505,-1583.38147522,0.00014549,2]
[418911168,1774530645517,-197.36,0.0001458,2]
[418911169,1774530645530,-1000.0,0.00014704,2]
[418911170,1774530645541,-585.20383967,0.00014704,2]
[418911171,1774530645552,-576.93292255,0.00014721,2]
[418911172,1774530645564,-1000.0,0.00014721,2]
[418911173,1774530645575,-1000.0,0.00014721,2]
[418911174,1774530645585,-166.66,0.00014725,2]
[418911175,1774530645595,-222.63690755,0.00014733,2]
[418911176,1774530645606,-736.0,0.00014733,2]
[418911177,1774530645616,-2467.0,0.00014734,2]
[418911178,1774530645626,-415.0,0.00014734,2]
[418911179,1774530645639,-6011.0,0.00014734,2]
[418911180,1774530645650,-529.003388,0.00014766,7]
[418911181,1774530645662,-230.662752,0.00014769,7]
[418911182,1774530645672,-1707.73262623,0.00014878,2]
[418911183,1774530645683,-504.0,0.0001488,2]
[418911184,1774530645695,-341.0528,0.000149,2]
[418911185,1774530645707,-8969.50058419,0.00014918,2]
[418911186,1774530645721,-366.77663085,0.00014978,2]
[418911187,1774530645732,-626.72,0.00015,2]
[418911188,1774530645744,-166.66,0.00015023,2]
[418911189,1774530645754,-197.38,0.00015107,2]
[418911190,1774530645765,-1500.0,0.00015252,2]
[418911191,1774530645778,-1500.0,0.00015268,2]
[418911194,1774530645790,-1500.0,0.00015268,2]
[418911195,1774530645802,-350.0,0.00015286,2]
[418911196,1774530645813,-166.66,0.0001532,2]
[418911197,1774530645823,-4609.0,0.00015371,2]
[418911198,1774530645835,-350.0,0.00015372,2]
[418911199,1774530645845,-153.0,0.00015373,3]
[418911200,1774530645856,-311.0,0.00015374,2]
[418911201,1774530645867,-311.0,0.00015378,2]
[418911202,1774530645877,-427.28,0.00015385,2]
[418911203,1774530645888,-1707.73262623,0.00015389,2]
[418911204,1774530645899,-2162.45,0.000154,2]
[418911205,1774530645910,-8969.50058419,0.00015409,2]
[418911206,1774530645920,-311.0,0.00015424,2]
[418911207,1774530645931,-212.130707,0.00015438,7]
[418911208,1774530645941,-625.14995,0.00015438,7]
[418911209,1774530645952,-294.8,0.00015468,2]
[418911210,1774530645963,-350.0,0.00015474,2]
[418911211,1774530645973,-1000.0,0.00015489,2]
[418911212,1774530645984,-1000.0,0.00015489,2]
[418911213,1774530645996,-1000.0,0.00015489,2]
[418911214,1774530646006,-1000.0,0.00015489,2]
[418911215,1774530646017,-1000.0,0.00015489,2]
[418911216,1774530646028,-1000.0,0.00015489,2]
[418911217,1774530646039,-1000.0,0.00015489,2]
[418911218,1774530646050,-1000.0,0.00015489,2]
[418911219,1774530646061,-1000.0,0.00015489,2]
[418911220,1774530646072,-1000.0,0.00015489,2]
[418911221,1774530646082,-1000.0,0.00015489,2]
[418911222,1774530646093,-259.654,0.00015489,2]
[418911223,1774530646104,-3516.0,0.00015495,2]
[418911224,1774530646114,-1345.0,0.00015495,2]
[418911225,1774530646126,-621.0,0.00015495,2]
[418911226,1774530646139,-1045.0,0.00015495,2]
[418911227,1774530646149,-1262.0,0.00015495,2]
[418911228,1774530646160,-1216.0,0.00015495,2]
[418911229,1774530646171,-924.0,0.00015495,2]
[418911230,1774530646182,-1200.0,0.000155,5]
[418911231,1774530646193,-350.0,0.00015521,2]
[418911232,1774530646204,-350.0,0.00015543,2]
[418911233,1774530646215,-311.0,0.00015544,2]
[418911234,1774530646226,-1500.0,0.000156,5]
[418911235,1774530646238,-350.0,0.00015614,2]
[418911236,1774530646249,-166.66,0.00015618,2]
[418911237,1774530646259,-311.0,0.00015618,2]
[418911238,1774530646270,-1000.0,0.0001564,2]
[418911239,1774530646282,-1154.11291767,0.0001568,2]
[418911240,1774530646294,-311.0,0.00015681,2]
[418911241,1774530646306,-311.0,0.00015681,2]
[418911242,1774530646316,-1000.0,0.00015686,2]
[418911243,1774530646327,-1060.32865217,0.00015693,2]
[418911244,1774530646338,-300.0,0.000157,5]
[418911245,1774530646350,-311.0,0.00015713,2]
[418911246,1774530646361,-1000.0,0.00015722,2]
[418911247,1774530646373,-1000.0,0.00015731,2]
[418911248,1774530646385,-1000.0,0.00015744,2]
[418911249,1774530646396,-249.0,0.00015753,2]
[418911250,1774530646407,-1000.0,0.00015759,2]
[418911251,1774530646418,-504.0,0.0001576,3]
[418911252,1774530646429,-1000.0,0.00015763,2]
[418911253,1774530646440,-1000.0,0.00015765,2]
[418911254,1774530646452,-1000.0,0.00015765,2]
[418911255,1774530646463,-469.082,0.00015765,2]
[418911256,1774530646474,-1000.0,0.00015767,2]
[418911257,1774530646485,-1000.0,0.00015785,2]
[418911258,1774530646496,-222.63690755,0.00015788,2]
[418911259,1774530646507,-500.0,0.00015799,2]
[418911260,1774530646517,-498.91,0.000158,2]
[418911261,1774530646528,-1698.19,0.000158,2]
[418911262,1774530646539,-300.0,0.000158,5]
[418911263,1774530646550,-2000.0,0.000158,2]
[418911264,1774530646562,-311.0,0.00015808,2]
[418911265,1774530646573,-249.0,0.00015809,2]
[418911266,1774530646585,-220.0,0.0001581,2]
[418911267,1774530646596,-2000.0,0.00015816,2]
[418911268,1774530646608,-2000.0,0.00015816,2]
[418911269,1774530646618,-1000.0,0.00015828,2]
[418911270,1774530646629,-1000.0,0.00015832,2]
[418911271,1774530646641,-1959.2628,0.0001584,2]
[418911272,1774530646652,-1959.2628,0.0001584,2]
[418911273,1774530646664,-1959.26279,0.0001584,2]
[418911274,1774530646675,-1000.0,0.00015856,2]
[418911275,1774530646686,-1000.0,0.00015864,2]
[418911276,1774530646696,-500.0,0.00015871,2]
[418911277,1774530646707,-500.0,0.00015872,2]
[418911278,1774530646719,-500.0,0.00015872,2]
[418911279,1774530646729,-200.0,0.00015872,2]
[418911280,1774530646740,-1000.0,0.0001589,2]
[418911281,1774530646751,-2000.0,0.0001589,2]
[418911282,1774530646762,-1692.32,0.000159,2]
[418911283,1774530646774,-8969.50058419,0.000159,2]
[418911284,1774530646786,-300.0,0.000159,5]
[418911285,1774530646797,-1707.73262623,0.000159,2]
[418911286,1774530646809,-248.84699495,0.000159,2]
[418911287,1774530646820,-831.65634528,0.000159,2]
[418911288,1774530646831,-497.43043966,0.000159,2]
[418911289,1774530646841,-3897.09169158,0.000159,2]
[418911290,1774530646851,-51048.15698,0.0001591,2]
[418911291,1774530646862,-2870.6064288,0.0001591,2]
[418911292,1774530646873,-1288.411611,0.00015913,7]
[418911293,1774530646884,-311.0,0.00015937,2]
[418911294,1774530646894,-500.0,0.00015973,2]
[418911295,1774530646906,-500.0,0.00015973,2]
[418911296,1774530646917,-536.70085087,0.00015973,2]
[418911297,1774530646928,-500.0,0.00015973,2]
[418911298,1774530646939,-500.0,0.00015973,2]
[418911299,1774530646949,-500.0,0.00015973,2]
[418911300,1774530646960,-500.0,0.00015973,2]
[418911301,1774530646970,-500.0,0.00015973,2]
[418911302,1774530646981,-284.56175556,0.00015973,2]
[418911303,1774530646992,-500.0,0.00015973,2]
[418911304,1774530647002,-500.0,0.00015973,2]
[418911305,1774530647013,-311.0,0.00015984,2]
[418911306,1774530647023,-500.0,0.00015996,2]
[418911307,1774530647033,-171.145243,0.00015997,2]
[418911308,1774530647043,-424.02554998,0.00015997,2]
[418911309,1774530647054,-151.0,0.00015997,2]
[418911310,1774530647064,-155.0,0.00015999,2]
[418911311,1774530647075,-500.0,0.00015999,2]
[418911312,1774530647085,-500.0,0.00015999,2]
[418911313,1774530647095,-400.24597363,0.00015999,2]
[418911314,1774530647105,-1047.34397162,0.00015999,5]
[418911315,1774530647116,-1047.34397162,0.00015999,5]
[418911316,1774530647126,-433.09682764,0.00015999,2]
[418911317,1774530647137,-541.58,0.00015999,2]
[418911318,1774530647148,-1034.90824408,0.00015999,5]
[418911319,1774530647158,-500.0,0.00015999,2]
[418911320,1774530647169,-500.0,0.00015999,2]
[418911321,1774530647179,-500.0,0.00015999,2]
[418911322,1774530647189,-500.0,0.00015999,2]
[418911323,1774530647200,-583.48,0.00015999,2]
[418911324,1774530647210,-657.0,0.00016,5]
[418911325,1774530647221,-204317.82086313,0.00016,2]
[418911326,1774530647232,-300.0,0.00016,2]
[418911327,1774530647243,-199.92952588,0.00016,2]
[418911328,1774530647254,-306033.53843903,0.00016,2]
[418911329,1774530647265,-262941.21390797,0.00016,2]
[418911330,1774530647276,-49040.50592679,0.00016,2]
[418911331,1774530647287,-846562.89438041,0.00016,2]
[418911332,1774530647297,-189831.17259833,0.00016,2]
[418911333,1774530647825,-414.57999999,0.00011116,2]
[418911350,1774530649661,-500.0,9.499e-05,2]
[418911351,1774530649670,-329.72980946,9.499e-05,2]
[418911352,1774530649680,-3336.35680986,0.00011116,2]
[418911353,1774530649691,-2500.0,0.00011378,2]
[418911354,1774530649701,-500.0,0.000118,2]
[418911355,1774530649711,-500.0,0.000118,2]
[418911356,1774530649721,-500.0,0.000118,2]
[418911357,1774530649730,-500.0,0.000118,2]
[418911358,1774530649739,-500.0,0.000118,2]
[418911359,1774530649748,-500.0,0.000118,2]
[418911360,1774530649757,-500.0,0.000118,2]
[418911361,1774530649767,-500.0,0.000118,2]
[418911362,1774530649776,-500.0,0.000118,2]
[418911363,1774530649785,-500.0,0.000118,2]
[418911364,1774530649795,-570.0,0.000118,2]
[418911365,1774530649806,-169.16832649,0.00013529,2]
[418911366,1774530649816,-1908.0620631,0.00013726,2]
[418911367,1774530649825,-219.14333175,0.00014117,2]
[418911368,1774530649835,-702.0,0.00014117,2]
[418911369,1774530649844,-702.0,0.00014117,2]
[418911370,1774530649854,-711.85750944,0.00014117,2]
[418911371,1774530649864,-1583.38147522,0.00015225,2]
[418911372,1774530649873,-785.52,0.00015806,3]
[418911373,1774530649882,-1908.0620631,0.000159,2]
[418911375,1774530649892,-15721.44246275,0.00016,2]
[418911377,1774530649907,-3031.75376585,0.00016,2]
[418911378,1774530649919,-725.13428238,0.00016,2]
[418911384,1774531832125,-202.15,9.255e-05,2]
[418911385,1774531832136,-250.0,9.401e-05,2]
[418911386,1774531832146,-228.83,9.546e-05,2]
[418911387,1774531832155,-67.02966555,9.57e-05,2]
[418911388,1774531832167,-346.84803172,9.57e-05,2]
[418911389,1774531832196,-1606.72727158,9.57e-05,2]
[418911390,1774531832209,-764.10981645,9.57e-05,2]
[418911391,1774531832220,-1234.3976084,9.577e-05,2]
[418911392,1774531832232,-1299.1423916,9.577e-05,2]
[418911393,1774531832241,-410.28840725,9.752e-05,2]
[418911394,1774531832250,-1087.31,9.752e-05,2]
[418911395,1774531832260,-300.0,9.893e-05,2]
[418911396,1774531832270,-160.0,9.893e-05,2]
[418911397,1774531832280,-383.85100994,9.893e-05,2]
[418911398,1774531832292,-816.14899006,9.893e-05,2]
[418911399,1774531832301,-300.0,9.894e-05,2]
[418911400,1774531832311,-2000.0,9.895e-05,2]
[418911401,1774531832321,-1540.61,9.895e-05,2]
[418911402,1774531832331,-157.03,9.923e-05,2]
[418911403,1774531832340,-410.28840723,9.923e-05,2]
[418911404,1774531832349,-1117.0,9.968e-05,2]
[418911405,1774531832359,-166.66,9.974e-05,2]
[418911406,1774531832368,-473.43580176,9.999e-05,2]
[418911407,1774531832378,-297.34082082,0.0001,2]
[418911408,1774531832387,-185.5041011,0.0001,2]
[418911409,1774531832396,-582.0,0.00010018,2]
[418911410,1774531832407,-336.0,0.00010155,2]
[418911411,1774531832416,-450.0,0.00010176,2]
[418911412,1774531832426,-250.0,0.00010181,2]
[418911413,1774531832435,-3042.88578619,0.00010181,2]
[418911414,1774531832452,-308.29206342,0.00010181,2]
[418911415,1774531832464,-456.50541151,0.00010181,2]
[418911416,1774531832488,-1127.54480993,0.00010181,2]
[418911417,1774531832500,-64.77192895,0.00010181,2]
[418911418,1774531832510,-343.10877551,0.00010181,2]
[418911419,1774531832519,-410.28840723,0.00010194,2]
[418911421,1774531832529,-354.0,0.00010196,2]
[418911423,1774531832538,-327.8108,0.00010204,2]
[418911424,1774531832547,-1344.0,0.00010211,2]
[418911425,1774531832556,-235.0,0.00010216,2]
[418911426,1774531832566,-150.0,0.00010216,2]
[418911427,1774531832574,-481.0,0.00010232,2]
[418911429,1774531832584,-346.0,0.00010236,2]
[418911430,1774531832593,-1913.0,0.00010252,2]
[418911431,1774531832603,-9999.99,0.0001029,2]
[418911432,1774531832613,-9999.99,0.0001029,2]
[418911433,1774531832622,-150.99,0.0001029,2]
[418911434,1774531832632,-4999.99,0.00010294,2]
[418911435,1774531832641,-32317.74,0.00010294,2]
[418911436,1774531832651,-1569.42,0.00010294,2]
[418911437,1774531832660,-9999.99,0.00010294,2]
[418911438,1774531832670,-1590.45,0.00010301,14]
[418911439,1774531832679,-166.66,0.00010304,2]
[418911440,1774531832689,-500.0,0.00010334,2]
[418911441,1774531832698,-181.95105871,0.00010334,2]
[418911442,1774531832707,-1562.51309575,0.00010334,2]
[418911443,1774531832716,-370.62851923,0.00010334,2]
[418911444,1774531832726,-1562.51309575,0.00010334,2]
[418911445,1774531832735,-1562.51309575,0.00010334,2]
[418911446,1774531832744,-1562.51309575,0.00010334,2]
[418911447,1774531832754,-1562.51309575,0.00010334,2]
[418911448,1774531832764,-1562.51309575,0.00010334,2]
[418911449,1774531832773,-1562.51309575,0.00010334,2]
[418911450,1774531832782,-1562.51309575,0.00010334,2]
[418911451,1774531832791,-1562.51309575,0.00010334,2]
[418911452,1774531832801,-1562.51309575,0.00010334,2]
[418911453,1774531832810,-1562.51309575,0.00010334,2]
[418911454,1774531832820,-1562.51309575,0.00010334,2]
[418911455,1774531832829,-1562.51309575,0.00010334,2]
[418911456,1774531832838,-1562.51309575,0.00010334,2]
[418911457,1774531832848,-1562.51309575,0.00010334,2]
[418911458,1774531832857,-1562.51309575,0.00010334,2]
[418911459,1774531832866,-1562.51309575,0.00010334,2]
[418911460,1774531832876,-1562.51309575,0.00010334,2]
[418911461,1774531832885,-1562.51309575,0.00010334,2]
[418911462,1774531832894,-1562.51309575,0.00010334,2]
[418911463,1774531832904,-1562.51309575,0.00010334,2]
[418911464,1774531832913,-1562.51309575,0.00010334,2]
[418911465,1774531832923,-1562.51309575,0.00010334,2]
[418911466,1774531832933,-1562.51309575,0.00010334,2]
[418911467,1774531832943,-1562.51309575,0.00010334,2]
[418911468,1774531832952,-1562.51309575,0.00010334,2]
[418911469,1774531832962,-1562.51309575,0.00010334,2]
[418911470,1774531832972,-1562.51309575,0.00010334,2]
[418911471,1774531832982,-1562.51309575,0.00010334,2]
[418911472,1774531832992,-1562.51309575,0.00010334,2]
[418911473,1774531833002,-1562.51309575,0.00010334,2]
[418911474,1774531833011,-1562.51309575,0.00010334,2]
[418911475,1774531833021,-1562.51309575,0.00010334,2]
[418911476,1774531833030,-1562.51309575,0.00010334,2]
[418911477,1774531833040,-1562.51309575,0.00010334,2]
[418911478,1774531833049,-1562.51309575,0.00010334,2]
[418911479,1774531833058,-1562.51309575,0.00010334,2]
[418911480,1774531833068,-1562.51309575,0.00010334,2]
[418911481,1774531833077,-1562.51309575,0.00010334,2]
[418911482,1774531833086,-1656.0531239,0.00010334,2]
[418911483,1774531833096,-1656.0531239,0.00010334,2]
[418911484,1774531833105,-1656.0531239,0.00010334,2]
[418911485,1774531833115,-1656.0531239,0.00010334,2]
[418911486,1774531833124,-1656.0531239,0.00010334,2]
[418911487,1774531833133,-1656.0531239,0.00010334,2]
[418911488,1774531833143,-1656.0531239,0.00010334,2]
[418911489,1774531833152,-1656.0531239,0.00010334,2]
[418911490,1774531833162,-1656.0531239,0.00010334,2]
[418911491,1774531833172,-1656.0531239,0.00010334,2]
[418911492,1774531833183,-1656.0531239,0.00010334,2]
[418911493,1774531833193,-1656.0531239,0.00010334,2]
[418911494,1774531833203,-1656.0531239,0.00010334,2]
[418911495,1774531833213,-1656.0531239,0.00010334,2]
[418911496,1774531833223,-1656.0531239,0.00010334,2]
[418911497,1774531833233,-1656.0531239,0.00010334,2]
[418911498,1774531833243,-1656.0531239,0.00010334,2]
[418911499,1774531833253,-1656.0531239,0.00010334,2]
[418911500,1774531833263,-1656.0531239,0.00010334,2]
[418911501,1774531833273,-1656.0531239,0.00010334,2]
[418911502,1774531833282,-1656.0531239,0.00010334,2]
[418911503,1774531833292,-1656.0531239,0.00010334,2]
[418911504,1774531833301,-1656.0531239,0.00010334,2]
[418911505,1774531833311,-1656.0531239,0.00010334,2]
[418911506,1774531833320,-1656.0531239,0.00010334,2]
[418911507,1774531833329,-1656.0531239,0.00010334,2]
[418911508,1774531833339,-1656.0531239,0.00010334,2]
[418911509,1774531833348,-1656.0531239,0.00010334,2]
[418911510,1774531833357,-1656.0531239,0.00010334,2]
[418911511,1774531833367,-1576.93058575,0.00010334,2]
[418911512,1774531833376,-1576.93058575,0.00010334,2]
[418911513,1774531833385,-1576.93058575,0.00010334,2]
[418911514,1774531833395,-1576.93058575,0.00010334,2]
[418911515,1774531833404,-1576.93058575,0.00010334,2]
[418911516,1774531833413,-1576.93058575,0.00010334,2]
[418911517,1774531833422,-1576.93058575,0.00010334,2]
[418911518,1774531833432,-1576.93058575,0.00010334,2]
[418911519,1774531833442,-1576.93058575,0.00010334,2]
[418911520,1774531833451,-1576.93058575,0.00010334,2]
[418911521,1774531833460,-1576.93058575,0.00010334,2]
[418911522,1774531833470,-1576.93058575,0.00010334,2]
[418911523,1774531833479,-1576.93058575,0.00010334,2]
[418911524,1774531833489,-1576.93058575,0.00010334,2]
[418911525,1774531833498,-1576.93058575,0.00010334,2]
[418911526,1774531833508,-1576.93058575,0.00010334,2]
[418911527,1774531833517,-1576.93058575,0.00010334,2]
[418911528,1774531833526,-1576.93058575,0.00010334,2]
[418911529,1774531833536,-9999.99,0.00010335,2]
[418911530,1774531833546,-150.99,0.00010335,2]
[418911531,1774531833556,-9999.99,0.00010335,2]
[418911532,1774531833565,-211.47,0.00010381,2]
[418911533,1774531833574,-299.99,0.000105,2]
[418911534,1774531833584,-300.0,0.000105,3]
[418911535,1774531833593,-5533.0,0.000106,5]
[418911536,1774531833602,-600.0,0.000106,3]
[418911537,1774531833612,-500.0,0.00010608,2]
[418911538,1774531833621,-157.03,0.00010632,2]
[418911539,1774531833631,-166.66,0.00010633,2]
[418911540,1774531833640,-200.0,0.00010686,2]
[418911541,1774531833650,-900.0,0.000107,3]
[418911542,1774531833659,-500.0,0.00010722,2]
[418911543,1774531833668,-500.0,0.00010722,2]
[418911544,1774531833677,-500.0,0.00010722,2]
[418911545,1774531833686,-500.0,0.00010722,2]
[418911546,1774531833696,-500.0,0.00010722,2]
[418911547,1774531833705,-500.0,0.00010722,2]
[418911548,1774531833715,-500.0,0.00010722,2]
[418911549,1774531833726,-500.0,0.00010722,2]
[418911550,1774531833735,-500.0,0.00010722,2]
[418911551,1774531833745,-500.0,0.00010722,2]
[418911552,1774531833755,-500.0,0.00010722,2]
[418911553,1774531833764,-500.0,0.00010722,2]
[418911554,1774531833773,-500.0,0.00010722,2]
[418911555,1774531833782,-500.0,0.00010722,2]
[418911556,1774531833791,-500.0,0.00010722,2]
[418911557,1774531833800,-500.0,0.00010722,2]
[418911558,1774531833810,-500.0,0.00010722,2]
[418911559,1774531833819,-500.0,0.00010722,2]
[418911560,1774531833828,-496.50447388,0.00010722,2]
[418911561,1774531833837,-10000.0,0.000108,2]
[418911562,1774531833846,-1200.0,0.000108,3]
[418911563,1774531833855,-700.17,0.0001086,2]
[418911564,1774531833864,-500.0,0.00010882,2]
[418911565,1774531833873,-420.0,0.00010882,2]
[418911566,1774531833883,-1680.0,0.00010882,2]
[418911567,1774531833892,-420.0,0.00010883,2]
[418911568,1774531833901,-1321.91050381,0.00010883,2]
[418911569,1774531833911,-2500.0,0.00010891,2]
[418911570,1774531833920,-200.0,0.00010893,2]
[418911571,1774531833930,-500.0,0.00010893,2]
[418911572,1774531833939,-500.0,0.00010893,2]
[418911573,1774531833948,-151.0,0.00010893,2]
[418911574,1774531833957,-500.0,0.00010893,2]